{"text_format":"1","workbook":"xlsx","n_sheets":1,"sheets":["2018-01-19"],"not_rendered":{"charts":0,"images":0,"macros":1,"external_links":0,"defined_names":1,"comments":0,"pivot_tables":0},"unopened":[],"bounds":{"document_bytes":16777216,"sheet_cells":100000,"rows_first":2000,"rows_last":500,"rows_between":2000,"halvings":0,"cell_chars":16384,"cell_head_chars":4096},"cells_cut":0,"cells_raw":0,"read":"whole","date_system":"1900"}

{"sheet":"2018-01-19","index":0,"n_rows":33,"n_cols":38,"rows_kept":33,"cut":false,"hidden":false,"merged":[[0,19,3,20],[0,21,1,27],[0,28,1,28],[21,22,23,22],[24,22,25,22],[19,23,19,26],[23,23,23,26],[9,23,9,26],[10,23,10,26],[11,23,11,26],[12,23,12,26],[13,23,13,26],[7,22,9,22],[10,22,13,22],[14,22,16,22],[24,23,24,26],[22,23,22,26],[21,23,21,26],[20,23,20,26],[4,22,4,28],[5,27,5,28],[14,23,14,26],[7,23,7,26],[8,23,8,26],[5,23,6,26],[5,22,6,22],[2,21,3,27],[15,23,15,26],[17,23,17,26],[18,23,18,26],[16,23,16,26],[17,22,20,22],[31,3,31,6],[25,23,25,26],[26,23,26,26],[27,23,27,26],[28,23,28,26],[31,22,32,28],[29,23,29,26],[30,23,30,26],[26,22,27,22],[28,22,30,22],[4,0,5,0],[2,28,3,28],[3,0,3,18],[33,1,33,2],[4,1,5,2],[21,1,21,2],[22,1,22,2],[16,1,16,2],[17,1,17,2],[19,1,19,2],[20,1,20,2],[18,1,18,2],[23,1,23,2],[15,1,15,2],[12,1,12,2],[32,3,32,6],[24,1,24,2],[25,1,25,2],[32,0,32,2],[14,1,14,2],[27,1,27,2],[26,1,26,2],[31,0,31,2],[28,1,28,2],[29,1,29,2],[30,1,30,2],[1,6,1,18],[2,6,2,18],[0,6,0,18],[13,1,13,2],[7,1,7,2],[8,1,8,2],[9,1,9,2],[10,1,10,2],[11,1,11,2],[6,1,6,2],[0,0,2,2],[4,3,4,4],[0,3,0,5],[4,5,4,6],[1,3,1,5],[2,3,2,5]]}
[null,null,null,"CONTREMAITRE :",null,null,null,null,null,null,null,null,null,null,null,null,null,null,null,"JOUR :",null,{"$f":"PROPER(TEXT(V3,\"jjjj\"))","v":"Vendredi"}]
[null,null,null,"PROJET :"]
[null,null,null,"N°",null,null,"17-5501",null,null,null,null,null,null,null,null,null,null,null,null,null,null,"2018-01-19"]
[]
[null,"NOM DE L'EMPLOYÉ",null,"HEURE A.M.",null,"HEURE P.M.",null,"O",null,null,null,253,null,null,null,null,null,null,null,null,null,"TOTAL","Équipements Utilisés"]
[null,null,null,"DE","À","DE","À",null,null,null,null,null,null,null,null,null,null,null,null,null,null,null,null,"Équipements  ",null,null,null,"Compteur "]
[1,null,null,7,12,12.5,15.5,null,null,null,null,null,null,null,null,null,null,null,null,null,null,{"$f":"SUM(H7:U7)","v":0},null,null,null,null,null,"Début","Fin"]
[2,null,null,7,12,12.5,15.5,null,null,null,null,null,null,null,null,null,null,null,null,null,null,0,"CAMION"]
[3,null,null,7,12,12.5,15.5,null,null,null,null,null,null,null,null,null,null,null,null,null,null,0]
[4,null,null,7,12,12.5,15.5,null,null,null,null,null,null,null,null,null,null,null,null,null,null,0]
[5,null,null,7,12,12.5,15.5,null,null,null,null,null,null,null,null,null,null,null,null,null,null,0,"BOBCATS","BOBCAT S160                            1020",null,null,null,null,null,null,null," "]
[6,null,null,7,12,12.5,15.5,null,null," ",null,null,null,null,null,null,null,null,null,null,null,0,null,null,null,null,null,null,null,null,null,null,null,null," "]
[7,null,null,7,12,12.5,15.5,null,null,null,null,null,null,null,null,null,null,null,null,null,null,0,null,null,null,null,null,null,null,null,null,null,null,null,null," "]
[8,null,null,7,12,12.5,15.5,null,null,null,null,null,null,null,null,null,null,null,null,null,null,0]
[9,null,null,7,12,12.5,15.5,null,null,null,null,null,null,null,null,null,null,null,null,null,null,0,"PELLES",null,null,null,null,null," "]
[10,null,null,7,12,12.5,15.5,null,null,null,null,null,null,null,null,null,null,null,null,null,null,0]
[11,null,null,null,null,null,null,null,null,null,null,null,null,null,null,null,null,null,null,null,null,0,null,null,null,null,null,null,null,null,null,null,null," ",null,null,null," "]
[12,null,null,null,null,null,null,null,null,null,null,null,null,null,null,null,null,null,null,null,null,0,"TRAMACS"]
[13,null,null,null,null,null,null,null,null,null,null,null,null,null,null,null,null,null,null,null,null,0]
[14,null,null,null,null,null,null,null,null,null,null,null,null,null,null,null,null,null,null,null,null,0,null,null,null,null,null,null,null,null,null,null,null,null," "]
[15,null,null,null,null,null,null,null,null,null,null,null,null,null,null,null,null,null,null,null,null,0]
[16,null,null,null,null,null,null,null,null,null,null,null,null,null,null,null,null,null,null,null,null,0,"HYDRO"]
[17,null,null,null,null,null,null,null,null,null,null,null,null,null,null,null,null,null,null,null,null,0,null,null,null,null,null,null,null,null,null,null,null,null," "]
[18,null,null,null,null,null,null,null,null,null,null,null,null,null,null,null,null,null,null,null,null,0,null,null,null,null,null,null,null,null,null," "," "," "]
[19,null,null,null,null,null,null,null,null,null,null,null,null,null,null,null,null,null,null,null,null,0,"LIFT","CHARIOT HYSTER  H50XM              340",null,null,null,null,null,null,null,null,null,null,null,null," "]
[20,null,null,null,null,null,null,null,null,null,null,null,null,null,null,null,null,null,null,null,null,0]
[21,null,null,null,null,null,null,null,null,null,null,null,null,null,null,null,null,null,null,null,null,0,"COMP"]
[22,null,null,null,null,null,null,null,null,null,null,null,null,null,null,null,null,null,null,null,null,0]
[23,null,null,null,null,null,null,null,null,null,null,null,null,null,null,null,null,null,null,null,null,0,"ACCESS"]
[24,null,null,null,null,null,null,null,null,null,null,null,null,null,null,null,null,null,null,null,null,0]
[25,null,null,null,null,null,null,null,null,null,null,null,null,null,null,null,null,null,null,null,null,0]
["CHARGÉ DE PROJET",null,null,"CODES",null,null,null,{"$f":"H5","v":"O"},{"$f":"I5","v":0},0,0,253,0,0,0,0,{"$f":"$Q$5","v":0},{"$f":"$R$5","v":0},{"$f":"$S$5","v":0},{"$f":"$T$5","v":0},{"$f":"$U$5","v":0}]
[null,null,null,"ITEM AU BORDEREAU",null,null,null,{"$f":"SUM(H7:H31)","v":0},{"$f":"SUM(I7:I31)","v":0},0,0,0,0,0,0,0,{"$f":"SUM(Q7:Q31)","v":0},0,0,0,0,0]